Cogmind - Beta 14 @@@ ROGUE MODE // 2024.12.17 @ 22:37:46 Player: Julie Result: Destroyed by S-10 Pest with Light Assault Rifle Performance ------------- Evolutions (0) 0 Regions Visited (2) 400 Robots Destroyed (20) 100 Value Destroyed (423) 423 Prototype IDs (0) 0 Alien Tech Used (0) 0 Bonus (-38) -38 TOTAL SCORE: 885 Bonus ------- Friendly Fire -38 Cogmind --------- Core Integrity 0/250 Matter 450/450 Energy 100/100 System Corruption 2% Temperature Cool (0) Movement Core (350) Ox6 Location -10/Mines Parts ------- > --- POWER (1) -------- (None) > --- PROPULSION (2) --- (None) > --- UTILITY (2) ------ Large Storage Unit Compact Matter Pod > --- WEAPON (2) ------- (None) > --- INVENTORY (15) --- Light Ion Engine Light Ion Engine Light Treads Small Storage Unit Huge Storage Unit Medium Matter Pod (2) Signal Interpreter Peak State ------------ > --- POWER ------------ Light Angular Momentum Engine > --- PROPULSION ------- Light Treads Light Treads > --- UTILITY ---------- Large Storage Unit Compact Matter Pod > --- WEAPON ----------- Assault Rifle > --- INVENTORY -------- Light Ion Engine Light Ion Engine Light Treads Small Storage Unit Huge Storage Unit Medium Matter Pod Signal Interpreter [Rating: 12] Favorites ----------- Power Light Ion Engine Engine Light Ion Engine Power Core Light Nuclear Core Propulsion Light Treads Treads Light Treads Utility Large Storage Unit Storage Large Storage Unit Weapon Assault Rifle Energy Gun Medium Laser Ballistic Gun Assault Rifle Launcher Grenade Launcher Build | -11 -10 -10 ------- Run | Yrd Mat Min Slots Evolved . | . . . Power . | . . . Propulsion . | . . . Utility . | . . . Weapon . | . . . Parts Attached 16 | 7 7 2 Power 3 | 1 1 1 Engine 2 | 1 . 1 Core 1 | . 1 . Reactor . | . . . Propulsion 2 | 2 . . Treads 2 | 2 . . Leg . | . . . Wheel . | . . . Hover . | . . . Flight . | . . . Utility 7 | 1 5 1 Device . | . . . Storage 7 | 1 5 1 Processor . | . . . Hackware . | . . . Protection . | . . . Artifact . | . . . Weapon 4 | 3 1 . Energy Gun 2 | 2 . . Energy Cannon . | . . . Ballistic Gun 1 | 1 . . Ballistic Cannon . | . . . Launcher 1 | . 1 . Special Weapon . | . . . Impact Weapon . | . . . Slashing Weapon . | . . . Piercing Weapon . | . . . Special Melee Weapon . | . . . Unidentified Prototypes . | . . . Parts Lost 6 | . . 6 Power 2 | . . 2 Propulsion 2 | . . 2 Utility . | . . . Weapon 2 | . . 2 Highest Loss Streak 4 | . . 4 To Critical Strikes . | . . . Average Slot Usage (%) 87 | . 89 84 Engine 8 | . 10 6 Core 4 | . 3 6 Treads 27 | . 28 25 Storage 21 | . 17 28 Ballistic Gun 13 | . 14 12 Launcher 10 | . 13 5 Peak Build Rating 12 | 6 9 12 Average Rating 7 | 5 6 9 On Entrance 5 | . 6 9 Naked Turns . | . . . Heaviest Build 33 | 12 33 33 Greatest Support 40 | 40 40 40 Greatest Overweight (x) 3 | 3 . 1 Average Overweight (x) . | . . . Largest Inventory Capacity 25 | 8 25 15 Average Capacity 12 | 7 12 15 Most Carried 7 | 1 6 7 Average Carried 3 | . 2 6 Final Capacity 15 | 8 15 15 Final Carried 7 | 1 6 7 Class Distribution -------------------- 100% | Mutant Dominant Class ---------------- Mutant | -10/Materials Mutant | -10/Mines Resources | -11 -10 -10 ----------- Run | Yrd Mat Min Matter Collected 703 | 217 221 265 Remotely . | . . . Salvage Created 388 | . 368 20 Parts 41 | . 41 . Haulers Intercepted 1 | . 1 . Recyclers Shooed 1 | . 1 . Parts Field Recycled . | . . . Retrieved Matter . | . . . Parts Self-Destructed . | . . . Prevented . | . . . Kills | -11 -10 -10 ------- Run | Yrd Mat Min Combat Hostiles Destroyed 14 | . 8 6 Melee 1 | . . 1 Guns 4 | . 1 3 AOE 9 | . 7 2 Classes Destroyed 8 | . 6 2 Worker 3 | . 3 . Builder 3 | . 3 . Tunneler 1 | . 1 . Hauler 1 | . 1 . Watcher 3 | . 3 . Swarmer 1 | . . 1 Grunt 8 | . 8 . Assembled 5 | . . 5 Best Kill Streak 9 | . 9 3 Combat Bots Only 4 | . 4 3 Max Kills in Single Turn 3 | . 3 1 Gunslinging . | . . . Exploded 2 | . 2 1 Melee 1 | . . 1 Uniques/NPCs Destroyed . | . . . Combat | -11 -10 -10 -------- Run | Yrd Mat Min Hostile Shots Fired 67 | . 15 52 Missed 11 | . 2 9 Damage Taken 845 | . 264 581 Core 251 | . 58 193 Absorbed by Shields . | . . . Core Remaining (%) 100 | 100 . . Volleys Fired 34 | . 15 19 Largest 2 | . 2 2 Hottest 50 | . 50 50 Shots Fired 51 | . 28 23 Gun 34 | . 15 19 Cannon . | . . . Launcher 17 | . 13 4 Special . | . . . Kinetic 34 | . 15 19 Thermal . | . . . Explosive 17 | . 13 4 Electromagnetic . | . . . Robot Hit Streak 6 | . 3 6 Robot Miss Streak 4 | . 4 3 Penetration Max . | . . . Secondary Targets . | . . . Shots Hit Robots 21 | . 10 11 Core Hits 43 | . 32 11 Critical Kills . | . . . Critical Parts Destroyed . | . . . Critical Strikes . | . . . Melee Attacks . | . . . Impact . | . . . Slashing . | . . . Piercing . | . . . Sneak Attacks . | . . . Combat Hostiles . | . . . Follow-up Attacks . | . . . Damage Inflicted 1350 | . 957 393 Guns 176 | . 24 152 Cannons . | . . . Explosions 1168 | . 933 235 Melee . | . . . Ramming 6 | . . 6 Kinetic 176 | . 24 152 Thermal 110 | . . 110 Explosive 1058 | . 933 125 Electromagnetic . | . . . Impact . | . . . Slashing . | . . . Piercing . | . . . Highest Corruption 2 | . . 2 Average Corruption 2 | . . 2 Corruption Purged . | . . . Corruption Blocked . | . . . Overload Shots . | . . . Overflow Damage 43 | . 7 36 Projectiles . | . . . Explosions 43 | . 7 36 Melee . | . . . Knockbacks . | . . . Impact . | . . . Kinetic . | . . . Secondary . | . . . Self-Inflicted Damage 103 | . 103 . Shots 3 | . 3 . Rammed 5 | . . 5 Targets Rammed 6 | . . 6 Kicked . | . . . Crushed 1 | . . 1 Highest Temperature 12 | . 12 . Average Temperature 4 | . 4 . Received Heat Transfer 93 | . 93 . Siege Activations . | . . . Robots Corrupted . | . . . Combat Hostiles . | . . . Parts Fried . | . . . Impact Corruptions . | . . . Robots Melted . | . . . Combat Hostiles . | . . . Parts Melted . | . . . Heat Transferred 150 | . . 150 Parts Sabotaged . | . . . Parts Stolen . | . . . Parts Stripped . | . . . Power Chain Reactions . | . . . Alert | -11 -10 -10 ------- Run | Yrd Mat Min Peak Influence 414 | . 414 114 Initial 83 | . . 83 Average 159 | . 227 89 Maximum Alert Level 2 | . 2 . Low Security (%) 57 | 100 25 100 Level 1 35 | . 62 . Level 2 6 | . 12 . Level 3 . | . . . Level 4 . | . . . Level 5 . | . . . High Security . | . . . Max Security . | . . . Squads Dispatched 1 | . 1 . Investigation 1 | . 1 . Extermination . | . . . Reinforcement . | . . . Assault . | . . . Garrison . | . . . Intercept . | . . . Searches Triggered . | . . . Construction Impeded . | . . . Haulers Reinforced . | . . . Active Scanning Responses . | . . . Cargo Convoy Interrupts . | . . . Stealth | -11 -10 -10 --------- Run | Yrd Mat Min Distress Signals 1 | . 1 . Communications Jammed . | . . . Distress Signals . | . . . Times Spotted 22 | . 12 10 Peak Tracking Total 5 | . 5 4 Tactical Retreats 1 | . . 1 Traps | -11 -10 -10 ------- Run | Yrd Mat Min Traps Triggered 1 | . 1 . Indirectly . | . . . Trap Hack Attempts . | . . . Triggered . | . . . Disarmed . | . . . Reprogrammed . | . . . Reused . | . . . Traps Extracted . | . . . Installed . | . . . Triggered . | . . . Machines | -11 -10 -10 ---------- Run | Yrd Mat Min Machines Disabled 4 | . 3 1 Max in Single Turn 1 | . 1 1 Machines Repaired . | . . . Machines Dismantled . | . . . Machines Sabotaged . | . . . Overloaded Fab Kills . | . . . Hacking | -11 -10 -10 --------- Run | Yrd Mat Min Machines Accessed . | . . . Terminals . | . . . Fabricators . | . . . Repair Stations . | . . . Recycling Units . | . . . Scanalyzers . | . . . Garrison Access . | . . . Total Hacks . | . . . Successful . | . . . Failed . | . . . Catastrophic . | . . . Database Lockouts . | . . . Manual . | . . . Terminals . | . . . Fabricators . | . . . Repair Stations . | . . . Recycling Units . | . . . Scanalyzers . | . . . Garrison Access . | . . . Terminal Hacks . | . . . Fabricator Hacks . | . . . Repair Station Hacks . | . . . Recycling Unit Hacks . | . . . Scanalyzer . | . . . Garrison Access Hacks . | . . . Unauthorized Hacks . | . . . Terminals . | . . . Fabricators . | . . . Repair Stations . | . . . Recycling Units . | . . . Scanalyzers . | . . . Garrison Access . | . . . Data Cores Recovered . | . . . Used . | . . . Hacking Detections . | . . . Full Trace Events . | . . . Feedback Events . | . . . Feedback Blocked . | . . . Robot Schematics Acquired . | . . . Robots Built . | . . . Authchips . | . . . Time . | . . . Total Robot Build Rating . | . . . Part Schematics Acquired . | . . . Parts Built . | . . . Authchips . | . . . Time . | . . . Total Part Build Rating . | . . . Parts Repaired . | . . . Time . | . . . Parts Recycled . | . . . Recycled Matter . | . . . Retrieved Matter . | . . . Retrieved Components . | . . . Parts Scanalyzed . | . . . Part Schematics Acquired . | . . . Parts Damaged . | . . . Bothacking | -11 -10 -10 ------------ Run | Yrd Mat Min Used RIF Installer . | . . . Robots Hacked . | . . . Non-combat . | . . . Combat . | . . . Robot Hacks Applied . | . . . Relay Couplers Released . | . . . Fabnet Peak Effective % . | . . . Robots Rewired . | . . . Allies Hacked . | . . . Hacks Repelled . | . . . Allies | -11 -10 -10 -------- Run | Yrd Mat Min Total Allies . | . . . Largest Group . | . . . Highest-Rated Group . | . . . Highest-Rated Ally . | . . . Total Orders . | . . . Ally Attacks . | . . . Total Damage . | . . . Kills . | . . . Allies Corrupted . | . . . Allies Melted . | . . . Intel | -11 -10 -10 ------- Run | Yrd Mat Min Robot Analysis Total . | . . . Derelict Logs Recovered 1 | . . 1 Drone Launches . | . . . Drone Recoveries . | . . . Exploration | -11 -10 -10 ------------- Run | Yrd Mat Min Turns Passed 762 | 76 434 252 Spaces Moved 385 | 45 225 115 Core 21 | 21 . . Treads 364 | 24 225 115 Legs . | . . . Wheels . | . . . Hover . | . . . Flight . | . . . Fastest Speed 50 | 50 160 160 Average Speed 158 | 145 160 160 Slowest Speed 240 | 200 160 240 Overloaded Moves . | . . . Propulsion Burnouts . | . . . Robots Hopped . | . . . Cave-ins Triggered . | . . . Exploration Rate (%) 20 | 4 33 23 Regions Visited 2 Branch Regions 1 Pre-discovered Areas . | . . . Known Exits Taken . | . . . Unknown Exits Taken 2 | 1 1 . Scrap Searched . | . . . Spaces Dug 6 | . 6 . Terrain Destroyed 82 | . 71 11 Melee . | . . . Projectile . | . . . AOE 82 | . 71 11 Terrain Rammed . | . . . Walls Destroyed . | . . . Machines Disabled . | . . . Actions | -11 -10 -10 --------- Run | Yrd Mat Min Total 465 | 52 269 144 Wait 21 | . 19 2 Move 383 | 44 224 115 Hop . | . . . Pick Up 4 | 1 3 . Fast Attach 8 | 6 1 1 Attach 1 | . 1 . Detach 1 | . 1 . Swap 7 | 1 5 1 Drop . | . . . Fire 34 | . 15 19 Melee . | . . . Ram 4 | . . 4 Kick . | . . . Crush 2 | . . 2 Escape Stasis . | . . . Rewire . | . . . Trap . | . . . Miscellaneous . | . . . Route ------- -11/Scrapyard -10/Materials (discovered 2 exits: [*Min] / [*Sub]) -10/Mines History --------- Turn | Location | Event 40 | -11/Scrapyard | Discovered new exit (range 14) 77 | -11/Scrapyard | Entered Materials 318 | -10/Materials | Build established: Mutant 421 | -10/Materials | Discovered new exit (range 14) 437 | -10/Materials | Discovered new exit (range 15) 511 | -10/Materials | Entered Mines 512 | -10/Mines | Assembled infested the area 624 | -10/Mines | Core integrity fell below 50% 757 | -10/Mines | Core integrity fell below 20% 763 | -10/Mines | Destroyed by S-10 Pest with Light Assault Rifle Last Messages --------------- 00626_ Acquired 5 matter. 00643_ Acquired Lgt. Angular Momentum Engine. 00645_ Acquired 32 matter. 00646_ The unstable cave ceiling collapses. 00650_ Acquired 3 matter. 00651_ Acquired 1 matter. 00689_ Acquired derelict log, extracted data. Data stored: Mines entrances (x2). 00700_ Extracted 100 matter. 00701_ Extracted 119 matter. 00731_ Assault Rifle destroyed. 00741_ Lgt. Treads destroyed. 00743_ Crushed S-10 Pest. 00743_ S-10 Pest destroyed. 00746_ Slammed into S-10 Pest. 00747_ Lgt. Treads destroyed. 00748_ Slammed into S-10 Pest. 00750_ Lgt. Angular Momentum Engine destroyed. 00753_ Slammed into S-10 Pest. 00760_ Destabilizing: System corrupted (+2). Map ----- +----------------------------------------------------+ | | | | | | | | | | | | | | | | | | | | | | | | | | | | | | | ???????????????????########??????????????? | | ??????????????????## ####???????????? | | ??????????????????# ! #???????????? | | ??????????????????# !!!! #????????##?? | | ??????????????????# ! ! #?????### ##? | | ??????????????????# !! ####### #? | | ??????????????????# ## # #? | | ??????????????????# ## #?? | | ??????????????????### ######## #??? | | ???????????????###### #??## #???? | | ???????????????# @ s #??# ##??? | | ???????????????# s### #??# "##?? | | ???????????????# #?# #?## ##?? | | ???????????????# #?# ### = ##? | | ???????????????# ?# #? | | ???????????????# ?##### ### | | ??????????????? ?????# | | ??????????????? ?????# | | ??????????????"" ##????# ### ## | | ??????????????"" ##?????# ##?## #? | | ??????????????"" ???????# ###???# #? | | ??????????????? ???????## ##?????# #? | | ??????????????? t????????#######??????# ? | | ??????????????? ?????????????????????###? | | ??????????????? ????????????????????????? | | ??????????????? ????????????????????????? | | ??????????????? ????????????????????????? | | ?????????????????????????????????????????? | | ?????????????????????????????????????????? | | ?????????????????????????????????????????? | | ?????????????????????????????????????????? | | ?????????????????????????????????????????? | | ?????????????????????????????????????????? | | ?????????????????????????????????????????? | | ?????????????????????????????????????????? | +----------------------------------------------------+ Best States ------------- Heat Dissipation 25 Energy Generation 18 Energy Capacity 310 Matter Stores 448 Matter Capacity 450 Sight Range 16 Terrain Scan Density 10 Evasion (%) 40 Recoil Reduction 2 Item Schematics ----------------- None Robot Schematics ------------------ None Fabricated ------------ Nothing Alien Tech Used ----------------- None Achievements -------------- None Challenges ------------ None Game ------ Seed DroneWardroneSuite Manual? 0 Play Time 00:08:17 Cumulative 21.3 hours Start 2024.12.17 @ 22:31:02 End 2024.12.17 @ 22:37:46 Sessions 1 Manual Loads 0 Difficulty Rogue Special Mode None Game No. 64 Rogue 64 Adventurer 0 Explorer 0 Win Type - Total 0 Types 0/0/0/0/0/0/0/0/0 Lore% 10 Gallery% 24 Achievement% 21 Wizard Run 0 Options --------- Layout 1 ASCII 0 Keyboard 1 Movement Numpad Keybinds 1 Fullscreen 1 Font 24/Smallcaps Map View 25x17 Zoom Use 39% Tactical HUD 1 Map Filters NONE Filters NONE Steam 1 RUN: 287d3216-dfc2-4b0a-bc5d-9e662251dc74